bitfinex/quotes_ETHUSD_20241024
["timestamp","ask_amount","ask_price","bid_price","bid_amount"]
[1729778112808,8.07854494,2538.0,2537.8,0.01]
[1729778113117,3.94026,2537.9,2537.8,0.01]
[1729778113320,6.94011,2538.0,2537.8,0.01]
[1729778113626,3.94026,2537.9,2537.8,0.01]
[1729778113924,3.78263,2538.1,2537.8,0.01]
[1729778114126,5.07855894,2538.0,2537.8,0.01]
[1729778114309,5.07855894,2538.0,2537.6,0.01]
[1729778114310,7.98882136,2538.0,2537.6,0.01]
[1729778114618,7.98882136,2538.0,2537.3,0.9056]
[1729778114619,3.94073,2537.6,2537.4,0.01]
[1729778114780,3.0,2537.8,2537.6,0.01]
[1729778114996,6.85000242,2538.3,2537.8,0.02]
[1729778115237,6.85000242,2538.3,2538.1,0.01]
[1729778115436,11.95989666,2538.3,2538.1,0.01]
[1729778115610,8.02013666,2538.3,2538.1,0.01]
[1729778115812,1.17013424,2538.3,2538.1,0.01]
[1729778116010,0.9119,2538.4,2538.1,0.01]
[1729778116219,3.93943,2538.5,2538.2,0.01]
[1729778116798,7.87891,2538.5,2538.2,0.01]
[1729778117039,3.93943,2538.5,2538.2,0.01]
[1729778117533,0.1242288,2538.6,2538.5,0.01]
[1729778117710,0.1242288,2538.6,2538.5,0.02]
[1729778117896,4.0633988,2538.6,2538.5,0.02]
[1729778118101,0.1242288,2538.6,2538.5,0.02]
[1729778118331,4.0633988,2538.6,2538.5,0.01]
[1729778118524,3.93948,2538.4,2538.3,0.02]
[1729778118836,4.78318,2538.4,2538.3,0.01]
[1729778119296,3.93948,2538.4,2538.3,0.01]
[1729778119694,3.93935,2538.5,2538.3,0.01]
[1729778119994,0.1242288,2538.6,2538.5,0.01]
[1729778120229,0.1242288,2538.6,2538.5,0.02]
[1729778120543,4.0633988,2538.6,2538.5,0.05269366]
[1729778121038,4.0633988,2538.6,2538.1,0.01]
[1729778121039,3.93979,2538.2,2538.1,0.01]
[1729778121331,3.93979,2538.2,2538.1,0.02]
[1729778121517,3.93979,2538.2,2538.1,0.01]
[1729778122301,6.93979,2538.2,2538.1,0.01]
[1729778122503,6.93979,2538.2,2537.6,0.8392]
[1729778122504,3.94011,2538.0,2537.9,0.01]
[1729778122821,3.94073,2537.6,2537.5,0.01]
[1729778123138,3.94059,2537.7,2537.5,0.05399786]
[1729778123445,3.94073,2537.6,2537.5,0.05399786]
[1729778124502,3.94073,2537.6,2537.5,0.01]
[1729778125401,0.8936,2537.1,2536.7,0.01]
[1729778125599,3.94197,2536.8,2536.7,0.01]
[1729778125805,3.94167,2537.0,2536.9,0.01]
[1729778126031,0.9074,2537.7,2537.1,0.8823]
[1729778126240,3.94088,2537.5,2537.4,0.01]
[1729778126923,7.88157,2537.6,2537.4,0.01]
[1729778127129,3.0,2537.8,2537.6,0.01]
[1729778127130,3.94057,2537.7,2537.6,0.01]
[1729778127741,6.94054,2537.8,2537.7,0.01]
[1729778127742,3.94054,2537.8,2537.7,0.01]
[1729778128132,3.94054,2537.8,2537.7,0.0521607]
[1729778128340,3.94057,2537.7,2537.6,0.02]
[1729778128559,3.94054,2537.8,2537.6,0.02]
[1729778128840,3.94057,2537.7,2537.6,0.02]
[1729778128996,3.94027,2537.9,2537.8,0.02]
[1729778129198,3.94021,2538.0,2537.8,0.02]
[1729778129404,3.94026,2537.9,2537.8,0.01]
[1729778129909,3.94026,2537.9,2537.8,0.02]
[1729778130314,3.94026,2537.9,2537.8,0.01]
[1729778130536,8.37225304,2537.9,2537.8,0.01]
[1729778130952,7.58420604,2537.9,2537.8,0.01]
[1729778131156,3.94026,2537.9,2537.8,0.01]
[1729778131464,3.94026,2537.9,2537.8,0.8463]
[1729778132212,3.64394604,2538.5,2538.0,0.01]
[1729778132412,3.93995,2538.1,2538.0,0.01]
[1729778132658,3.93981,2538.2,2538.1,0.01]
[1729778133172,3.93995,2538.1,2538.0,0.02]
[1729778133448,3.93995,2538.1,2538.0,0.01]
[1729778133654,3.93995,2538.1,2538.0,0.02]
[1729778133864,3.93981,2538.2,2538.0,0.06193641]
[1729778134153,3.93981,2538.2,2538.1,0.04180876]
[1729778134958,3.93965,2538.3,2538.2,0.02]
[1729778135451,0.1242288,2538.6,2538.4,0.02]
[1729778135651,0.1242288,2538.6,2538.5,0.04129824]
[1729778136117,4.0633988,2538.6,2538.5,0.04129824]
[1729778136319,3.93933,2538.5,2538.4,0.01]
[1729778136528,3.93933,2538.5,2538.2,0.01]
[1729778136529,3.93958,2538.4,2538.3,0.01]
[1729778136731,3.93964,2538.3,2538.2,0.01]
[1729778137230,3.93995,2538.1,2537.9,0.01]
[1729778137486,7.58405604,2538.0,2537.9,0.01]
[1729778138064,7.88004,2538.1,2537.9,0.01]
[1729778138284,3.94011,2538.0,2537.9,0.01]
[1729778139480,3.93976,2538.3,2538.0,0.01]
[1729778139688,4.54444604,2538.5,2537.9,0.01]
[1729778139689,8.48384604,2538.5,2538.2,0.01]
[1729778139979,7.0634288,2538.6,2538.3,0.01]
[1729778140148,7.0634288,2538.6,2538.3,0.05166043]
[1729778140476,3.64394604,2538.5,2538.3,0.05166043]
[1729778141144,0.1242288,2538.6,2538.5,0.02]
[1729778141581,0.1242288,2538.6,2538.5,0.06140519]
[1729778142093,0.1242288,2538.6,2538.5,0.92530519]
[1729778143286,4.0633988,2538.6,2538.5,0.05140519]
[1729778143446,5.22805028,2538.6,2538.5,0.01]
[1729778143641,1.83888028,2538.6,2538.3,0.01]
[1729778143981,3.93948,2538.4,2538.3,0.02]
[1729778144552,3.93948,2538.4,2538.3,0.01]
[1729778144759,3.93948,2538.4,2538.3,0.02]
[1729778145003,4.82671063,2538.4,2538.3,0.02]
[1729778146460,7.58329604,2538.5,2538.3,0.02]
[1729778146461,7.58327604,2538.5,2538.3,0.02]
[1729778146785,3.93948,2538.4,2538.3,0.02]
[1729778146969,3.94006,2538.1,2537.9,0.01]
[1729778147165,3.93975,2538.3,2537.9,0.01]
[1729778147166,3.0,2538.2,2537.9,0.01]
[1729778147512,3.0,2538.2,2538.0,0.04171213]
[1729778147513,3.93995,2538.1,2538.0,0.04171213]
[1729778147788,3.93995,2538.1,2537.9,0.02]
[1729778147789,3.94011,2538.0,2537.9,0.02]
[1729778148194,3.94011,2538.0,2537.9,0.01]
[1729778148344,3.55,2538.0,2537.5,0.01]
[1729778148548,3.55,2538.0,2537.6,0.01]
[1729778148549,7.58420604,2537.9,2537.6,0.01]
[1729778148772,7.58420604,2537.9,2537.6,0.06222285]
[1729778148978,3.0,2538.0,2537.8,0.01]
[1729778149182,3.94006,2538.1,2537.8,0.02]
[1729778149393,3.0,2538.1,2537.8,0.01]
[1729778149572,3.0,2538.1,2537.9,0.04196746]
[1729778149771,3.0,2538.1,2537.8,0.01]
[1729778149772,3.94026,2537.9,2537.8,0.01]
[1729778150088,3.0,2538.1,2537.8,0.02]
[1729778150089,6.94005,2538.1,2537.8,0.02]
[1729778150287,3.94015,2538.0,2537.8,0.02]
[1729778150447,3.0,2538.1,2537.8,0.02]
[1729778150852,6.94002,2538.1,2537.8,0.02]
[1729778151168,7.58405604,2538.0,2537.9,0.04199507]
[1729778151368,7.95233756,2538.0,2537.8,0.01]
[1729778151567,4.30854152,2537.9,2537.8,0.01]
[1729778152867,0.36828152,2537.9,2537.8,0.01]
[1729778154084,0.36828152,2537.9,2537.8,0.05212274]
[1729778154495,3.64394604,2538.0,2537.8,0.05212274]
[1729778154658,7.58411604,2538.0,2537.8,0.05212274]
[1729778154853,0.36830689,2537.9,2537.8,0.05212274]
[1729778155583,0.36830689,2537.9,2537.8,0.01]
[1729778155749,0.36830689,2537.9,2537.8,0.02]
[1729778155750,4.30856689,2537.9,2537.8,0.02]
[1729778155950,0.36830689,2537.9,2537.8,0.02]
[1729778156208,4.30856689,2537.9,2537.8,0.05238151]
[1729778156396,4.30856689,2537.9,2537.8,0.02]
[1729778156885,4.30856689,2537.9,2537.8,0.06238151]
[1729778157090,5.79782218,2537.9,2537.8,0.01]
[1729778157398,3.94073,2537.6,2537.5,0.01]
[1729778157696,3.64394604,2537.6,2537.5,0.01]
[1729778157892,3.64394604,2537.6,2537.5,0.0527646]
[1729778159199,3.64394604,2537.9,2537.7,0.01]
[1729778159397,3.94007,2538.1,2538.0,0.01]
[1729778159553,4.30833851,2538.1,2538.0,0.01]
[1729778159889,0.36826851,2538.1,2538.0,0.01]
[1729778160310,2.90904619,2538.3,2538.0,0.05212617]
[1729778160461,2.90904619,2538.3,2538.0,0.01]
[1729778160462,6.84869619,2538.3,2538.0,0.01]
[1729778160661,10.78842619,2538.3,2538.1,0.04199852]
[1729778160904,2.90904619,2538.3,2538.1,0.04199852]
[1729778161076,2.90904619,2538.3,2538.2,0.02]
[1729778161402,2.90904619,2538.3,2538.2,0.95907087]
[1729778161558,6.97245499,2538.6,2538.4,0.01]
[1729778161758,0.36817178,2538.5,2538.4,0.02]
[1729778162300,4.01351379,2538.5,2538.4,0.02]
[1729778163109,0.1242288,2538.6,2538.4,0.06161561]
[1729778163610,0.1242288,2538.6,2538.5,0.8443]
[1729778163902,0.1242288,2538.6,2538.5,0.96456888]
[1729778164109,0.1242288,2538.6,2538.5,1.38017789]
[1729778164460,0.1242288,2538.6,2538.5,1.39017789]
[1729778165199,4.39834201,2539.1,2539.0,0.9046]
[1729778165200,0.753,2539.1,2539.0,0.9046]
[1729778165405,0.753,2539.1,2539.0,4.85315]
[1729778165572,0.753,2539.1,2539.0,5.77417608]
[1729778166188,0.753,2539.1,2539.0,8.77417608]
[1729778166963,3.64534201,2540.2,2539.0,8.77417608]
[1729778167200,8.42687201,2540.5,2540.3,0.02]
[1729778167516,7.58157201,2540.5,2540.3,0.02]
[1729778167717,3.64534201,2540.5,2540.4,0.03906523]
[1729778167893,3.936,2540.7,2540.5,0.01]
[1729778168096,4.6941342,2540.7,2540.5,0.01]
[1729778168299,4.6940642,2540.7,2540.5,0.01]
[1729778168509,3.93607,2540.6,2540.5,0.01]
[1729778168821,3.93607,2540.6,2540.3,0.02]
[1729778169008,3.93638,2540.4,2540.3,0.02]
[1729778169216,3.93638,2540.4,2539.9,0.01]
[1729778169217,0.787273,2540.4,2539.9,0.01]
[1729778169385,3.93716,2539.9,2539.8,0.01]
[1729778170083,3.64534201,2540.0,2539.8,0.01]
[1729778170304,7.58243201,2540.0,2539.8,0.01]
[1729778170483,3.93716,2539.9,2539.8,0.01]
[1729778170687,3.93731,2539.8,2539.6,0.01]
[1729778171121,3.93747,2539.7,2539.6,0.01]
[1729778171428,3.93747,2539.7,2539.4,0.01]
[1729778171429,3.93778,2539.5,2539.4,0.01]
[1729778171594,4.725028,2539.7,2539.5,0.01]
[1729778171927,3.0,2539.8,2539.5,0.01]
[1729778172224,10.58246201,2540.0,2539.7,0.02]
[1729778172394,3.0,2540.1,2539.7,0.02]
[1729778172595,3.93654,2540.3,2540.2,0.01]
[1729778172812,3.93654,2540.3,2540.0,0.01]
[1729778173020,7.58174201,2540.4,2540.0,0.01]
[1729778173215,3.93668,2540.3,2540.0,0.01]
[1729778173415,3.93673,2540.2,2539.9,0.01]
[1729778173583,4.88787721,2540.4,2539.9,0.01]
[1729778173786,3.937,2540.0,2539.9,0.01]
[1729778174128,4.88787721,2540.4,2540.1,0.02]
[1729778174129,3.93668,2540.3,2540.1,0.02]
[1729778175095,3.93669,2540.2,2540.1,0.02]
[1729778175299,5.0885322,2540.2,2540.1,0.01]
[1729778175485,1.1518422,2540.2,2539.8,0.02]
[1729778175687,3.93716,2539.9,2539.8,0.02]
[1729778175983,3.93716,2539.9,2539.8,0.01]
[1729778176231,0.55,2540.1,2539.8,0.01]
[1729778176411,5.0886322,2540.2,2540.0,0.01]
[1729778176611,5.0886322,2540.2,2539.9,0.04234861]
[1729778176612,3.93708,2540.0,2539.9,0.04234861]
[1729778176798,3.93708,2540.0,2539.9,0.05234861]
[1729778177003,3.93708,2540.0,2539.9,0.01]
[1729778177227,3.93708,2540.0,2539.8,0.01]
[1729778177431,3.93741,2539.8,2539.6,0.01]
[1729778177628,3.93747,2539.7,2539.6,0.01]
[1729778178291,3.93762,2539.6,2539.5,0.01]
[1729778178600,3.93824,2539.2,2539.1,0.01]
[1729778178840,3.93824,2539.2,2539.1,0.02]
[1729778179044,3.93809,2539.3,2539.1,0.02]
[1729778179551,3.0,2539.4,2539.3,0.01]
[1729778179738,3.93823,2539.3,2539.1,0.02]
[1729778179926,3.0,2539.4,2539.1,0.02]
[1729778180252,3.0,2539.4,2539.3,0.01]
[1729778180612,3.93755,2539.7,2539.5,0.01]
[1729778180818,6.93731,2539.8,2539.7,0.01]
[1729778181039,3.93762,2539.6,2539.5,0.02]
[1729778182454,6.93732,2539.8,2539.5,0.02]
[1729778182622,3.93747,2539.7,2539.5,0.05987009]
[1729778182823,3.93747,2539.7,2539.5,0.02]
[1729778183030,3.93747,2539.7,2539.6,0.03973348]
[1729778183031,9.3270382,2539.7,2539.6,0.03973348]
[1729778183238,13.7896382,2539.7,2539.6,0.03973348]
[1729778183436,3.93896,2538.8,2538.7,0.01]
[1729778183662,3.93866,2539.0,2538.7,0.01]
[1729778183959,3.93886,2538.8,2538.7,0.05016378]
[1729778184130,3.93871,2538.9,2538.8,0.01]
[1729778184521,3.93856,2539.0,2538.9,0.02]
[1729778185555,3.93873,2538.9,2538.5,0.02]
[1729778185763,3.93917,2538.6,2538.5,0.02]
[1729778185962,3.93948,2538.4,2538.3,0.01]
[1729778186888,3.93946,2538.5,2538.3,0.01]
[1729778187060,10.87849,2538.6,2538.5,0.01]
[1729778187257,6.93923,2538.6,2538.5,0.01]
[1729778188144,3.93942,2538.5,2538.4,0.01]
[1729778188446,3.93948,2538.4,2538.3,0.01]
[1729778188644,3.93917,2538.6,2538.5,0.01]
[1729778188949,3.93933,2538.5,2538.4,0.01]
[1729778189576,3.93917,2538.6,2538.5,0.01]
[1729778189885,3.93895,2538.8,2538.6,0.01]
[1729778190109,3.0,2538.9,2538.7,0.01]
[1729778190307,3.0,2538.9,2538.7,0.8365]
[1729778190595,3.0,2538.9,2538.8,0.04031849]
[1729778190596,3.93871,2538.9,2538.8,0.04031849]
[1729778190760,3.93917,2538.6,2538.5,0.01]
[1729778190967,3.93933,2538.5,2538.4,0.01]
[1729778191210,3.93995,2538.1,2538.0,0.02]
[1729778191361,3.93995,2538.1,2538.0,0.01]
[1729778191807,3.93982,2538.2,2538.1,0.01]
[1729778191808,3.9398,2538.2,2538.1,0.01]
[1729778192368,7.87943,2538.3,2538.1,0.01]
[1729778192705,3.93965,2538.3,2538.1,0.01]
[1729778193004,3.93979,2538.2,2538.1,0.01]
[1729778193866,3.93995,2538.1,2538.0,0.01]
[1729778194064,3.93995,2538.1,2537.2,7.88247]
[1729778194065,3.94011,2538.0,2537.8,0.01]
[1729778194264,3.93997,2538.1,2537.9,0.01]
[1729778194498,3.64534201,2538.3,2537.9,0.01]
[1729778194703,3.94011,2538.0,2537.9,0.01]
[1729778195108,3.93984,2538.2,2538.0,0.8776]
[1729778195264,4.52874201,2538.6,2538.0,0.8776]
[1729778195265,3.93995,2538.1,2538.0,0.8776]
[1729778195465,3.94011,2538.0,2537.9,0.01]
[1729778195906,3.94026,2537.9,2537.8,0.01]
[1729778196106,3.94026,2537.9,2537.7,0.01]
[1729778196289,3.94026,2537.9,2537.8,0.01]
[1729778196488,3.94026,2537.9,2537.8,0.05063204]
[1729778196686,3.94026,2537.9,2537.8,0.01]
[1729778197078,3.94026,2537.9,2537.8,0.05067259]
[1729778197312,3.94013,2538.0,2537.8,0.05067259]
[1729778197915,3.94013,2538.0,2537.9,0.01]
[1729778198209,3.94013,2538.0,2537.9,0.05053579]
[1729778198583,3.93997,2538.1,2537.9,0.05053579]
[1729778198781,6.93986,2538.2,2538.1,0.01]
[1729778199195,6.93986,2538.2,2538.1,0.05026223]
[1729778199565,3.0,2538.2,2538.1,0.01]
[1729778199908,6.93949,2538.4,2538.1,0.05026223]
[1729778200112,3.93971,2538.3,2538.1,0.01]
[1729778200404,10.58505201,2538.3,2538.2,0.04012547]
[1729778200705,10.58505201,2538.3,2537.9,0.9175]
[1729778200706,3.93995,2538.1,2538.0,0.01]
[1729778201177,3.93995,2538.1,2538.0,0.05034741]
[1729778202087,3.0,2538.2,2538.0,0.05034741]
[1729778202484,6.93967,2538.3,2538.0,0.05034741]
[1729778202814,6.93967,2538.3,2538.2,0.01]
[1729778203172,6.93967,2538.3,2538.2,0.05007387]
[1729778203513,3.93912,2538.7,2538.4,0.01]
[1729778203718,3.93912,2538.7,2538.4,0.02]
[1729778204014,3.93925,2538.6,2538.4,0.02]
[1729778204171,3.93912,2538.7,2538.5,0.0398147]
[1729778204377,3.93917,2538.6,2538.5,0.0398147]
[1729778205982,3.93917,2538.6,2538.4,0.02]
[1729778205983,3.93933,2538.5,2538.4,0.02]
[1729778206529,6.84790152,2538.5,2538.4,0.02]
[1729778206682,3.93918,2538.6,2538.4,0.02]
[1729778206882,7.87847,2538.6,2538.4,0.02]
[1729778207225,3.93918,2538.6,2538.4,0.02]
[1729778208400,3.93933,2538.5,2538.4,0.02]
[1729778208599,3.93919,2538.6,2538.4,0.02]
[1729778209230,4.80483,2538.5,2538.4,0.02]
[1729778209384,2.90857152,2538.7,2538.4,0.02]
[1729778209385,3.93919,2538.6,2538.4,0.02]
[1729778210734,0.8764,2539.0,2538.8,0.02]
[1729778210895,3.30242052,2539.1,2538.8,0.02]
[1729778211089,4.8146,2539.3,2539.0,0.02]
[1729778211439,6.84697152,2539.1,2539.0,0.02]
[1729778212020,6.84697152,2539.1,2539.0,0.04769604]
[1729778212331,3.9388,2538.9,2538.8,0.01]
[1729778212492,4.4888,2538.9,2538.8,0.01]
[1729778212702,4.4888,2538.9,2538.8,0.05395447]
[1729778213028,3.93902,2538.7,2538.6,0.01]
[1729778213835,3.93917,2538.6,2538.5,0.01]
[1729778214950,3.55,2539.1,2538.7,0.8832]
[1729778215158,3.55,2539.1,2538.9,0.01]
[1729778215159,6.93866,2539.0,2538.9,0.01]
[1729778216108,3.9388,2538.9,2538.7,0.01]
[1729778216548,2.90857152,2538.8,2538.7,0.01]
[1729778216703,6.84743152,2538.8,2538.7,0.01]
[1729778217144,3.93902,2538.7,2538.6,0.01]
[1729778217345,3.93917,2538.6,2538.5,0.01]
[1729778219349,3.93964,2538.3,2538.2,0.01]
[1729778219635,3.93964,2538.3,2538.2,0.05476562]
[1729778220021,4.48951,2538.4,2538.2,0.05476562]
[1729778220254,4.48951,2538.4,2538.3,0.01]
[1729778220639,4.48951,2538.4,2538.3,0.05460608]
[1729778221420,4.48951,2538.4,2538.3,0.04460608]
[1729778221649,3.93964,2538.3,2538.2,0.01]
[1729778221814,3.93993,2538.2,2538.0,0.02]
[1729778222148,4.48995,2538.1,2538.0,0.01]
[1729778222355,3.94057,2537.7,2537.6,0.01]
[1729778222654,0.55,2537.4,2537.2,0.01]
[1729778222829,3.94098,2537.5,2537.2,0.01]
[1729778222830,6.84955152,2537.5,2537.2,0.01]
[1729778223023,2.90857152,2537.5,2537.4,0.01]
[1729778223226,3.94181,2536.9,2536.7,0.02]
[1729778223441,3.94181,2536.9,2536.7,0.01]
[1729778223442,6.85054152,2536.8,2536.7,0.01]
[1729778223625,3.94213,2536.7,2536.5,0.01]
[1729778223898,3.94213,2536.7,2536.5,0.02]
[1729778224161,0.55,2536.6,2536.3,0.01]
[1729778224340,2.90857152,2536.4,2536.3,0.02]
[1729778224656,6.85116152,2536.4,2536.3,0.02]
[1729778224954,6.85116152,2536.4,2535.9,0.02]
[1729778224955,0.55,2536.3,2535.9,0.02]
[1729778225260,2.90857152,2536.0,2535.9,0.01]
[1729778225751,0.55,2536.3,2536.1,0.01]
[1729778225752,3.45857152,2536.3,2536.1,0.01]
[1729778225954,2.90751071,2536.3,2536.1,0.01]
[1729778226365,3.65117953,2536.4,2536.1,0.01]
[1729778226532,3.65117953,2536.4,2536.3,0.01]
[1729778226861,3.65117953,2536.4,2536.2,0.01]
[1729778226862,4.49275,2536.3,2536.2,0.01]
[1729778227417,4.49275,2536.3,2536.2,0.05105329]
[1729778227832,0.55,2536.3,2536.2,0.01]
[1729778228032,0.55,2536.3,2536.2,0.05188529]
[1729778228257,3.65117953,2536.4,2536.2,0.06188529]
[1729778228464,3.94228,2536.6,2536.5,0.01]
[1729778228823,3.65117953,2536.7,2536.5,0.06147442]
[1729778229027,4.26836305,2536.7,2536.5,0.06147442]
[1729778229633,8.48964953,2537.3,2537.0,0.02]
[1729778229839,3.9415,2537.1,2536.8,0.02]
[1729778230134,4.54837953,2537.3,2536.8,0.01]
[1729778230135,3.94181,2536.9,2536.8,0.01]
[1729778230339,3.94181,2536.9,2536.8,0.02]
[1729778230644,3.94181,2536.9,2536.8,0.01]
[1729778231224,4.49181,2536.9,2536.8,0.01]
[1729778231456,3.94212,2536.7,2536.6,0.01]
[1729778231655,7.59329953,2536.7,2536.6,0.01]
[1729778231856,3.94255,2536.5,2536.3,0.01]
[1729778232055,0.9057,2536.8,2536.3,0.01]
[1729778232056,0.55,2536.6,2536.4,0.01]
[1729778232299,0.55,2536.7,2536.4,0.01]
[1729778232469,3.0,2536.8,2536.6,0.01]
[1729778233191,3.94033,2537.9,2536.2,3.94279]
[1729778233192,3.94136,2537.2,2536.8,0.02]
[1729778233397,7.59246953,2537.3,2536.8,0.02]
[1729778233603,11.53377953,2537.3,2536.8,0.02]
[1729778233768,7.59246953,2537.3,2536.8,0.02]
[1729778234297,7.59246953,2537.3,2537.0,0.02]
[1729778234792,0.61711832,2537.4,2537.3,0.01]
[1729778236171,4.55815832,2537.4,2537.3,0.01]
[1729778236385,3.94181,2536.9,2536.8,0.02]
[1729778236583,7.88405,2536.8,2536.6,0.8876]
[1729778236895,3.94197,2536.8,2536.7,0.04172314]
[1729778237605,4.49197,2536.8,2536.7,0.04172314]
[1729778237975,3.94212,2536.7,2536.6,0.01]
[1729778238395,0.55,2536.8,2536.6,0.01]
[1729778238396,4.49204,2536.8,2536.6,0.01]
[1729778238568,3.65117953,2536.9,2536.7,0.01]
[1729778238765,3.0,2537.1,2536.8,0.01]
[1729778238974,4.49178,2537.0,2536.9,0.04144932]
[1729778239176,7.49178,2537.0,2536.9,0.04144932]
[1729778239507,3.94181,2536.9,2536.8,0.01]
[1729778239910,0.8625,2537.3,2537.1,0.01]
[1729778240217,3.94135,2537.2,2537.1,0.01]
[1729778240393,3.9415,2537.1,2537.0,0.01]
[1729778240904,3.94197,2536.8,2536.7,0.02]
[1729778241204,3.94197,2536.8,2536.7,0.01]
[1729778241414,0.55,2536.8,2536.4,0.02]
[1729778241572,4.49212,2536.7,2536.6,0.01]
[1729778242411,4.49212,2536.7,2536.6,0.04164271]
[1729778242713,3.94244,2536.5,2536.4,0.02]
[1729778243208,3.94244,2536.5,2536.4,0.06191659]
[1729778243413,3.94244,2536.5,2536.4,0.02]
[1729778243587,3.94244,2536.5,2536.4,0.05191659]
[1729778244096,3.94275,2536.3,2536.2,0.01]
[1729778244308,3.94306,2536.1,2536.0,0.01]
[1729778244489,3.94321,2536.0,2535.9,0.01]
[1729778244676,7.59438953,2536.0,2535.9,0.01]
[1729778244883,7.59438953,2536.0,2535.6,0.9246]
[1729778244884,4.89581448,2536.0,2535.6,0.01]
[1729778245185,3.94337,2535.9,2535.6,0.02]
[1729778245405,9.38905448,2536.0,2535.9,0.01]
[1729778245609,3.94352,2535.9,2535.8,0.01]
[1729778246124,3.94358,2535.8,2535.6,0.02]
[1729778246279,0.55,2535.9,2535.6,0.01]
[1729778246520,3.94399,2535.5,2535.4,0.02]
[1729778246838,3.94399,2535.5,2535.4,0.01]
[1729778247043,3.94399,2535.5,2535.4,0.02]
[1729778247227,3.94446,2535.2,2535.1,0.01]
[1729778247661,3.94446,2535.2,2535.0,0.01]
[1729778247819,3.94461,2535.1,2535.0,0.01]
[1729778248021,3.94446,2535.2,2535.0,0.01]
[1729778248429,3.0,2535.4,2535.1,0.01]
[1729778249441,8.50716953,2535.7,2535.1,0.01]
[1729778249746,0.55,2535.6,2535.4,0.02]
[1729778249961,3.0,2535.7,2535.4,0.02]
[1729778250321,3.9436,2535.8,2535.4,0.02]
[1729778250660,6.85820923,2535.9,2535.6,0.01]
[1729778250856,6.85811923,2535.9,2535.8,0.01]
[1729778251080,2.91474923,2535.9,2535.6,0.02]
[1729778251236,3.94329,2536.0,2535.6,0.02]
[1729778251428,6.85765923,2536.2,2536.0,0.01]
[1729778251622,3.94306,2536.1,2536.0,0.01]
[1729778251827,6.85771923,2536.2,2536.0,0.02]
[1729778252258,3.94297,2536.2,2536.0,0.02]
[1729778252462,3.94289,2536.3,2536.0,0.02]
[1729778252763,3.943,2536.2,2536.0,0.02]
[1729778253223,3.6516031,2536.4,2536.2,0.01]
[1729778253224,3.94266,2536.4,2536.2,0.01]
[1729778253426,3.94266,2536.4,2536.2,0.02]
[1729778254097,3.94261,2536.4,2536.2,0.02]
[1729778254273,3.94261,2536.4,2536.2,0.01]
[1729778254604,3.94261,2536.4,2536.2,0.02]
[1729778254762,7.88532,2536.4,2536.2,0.02]
[1729778254962,3.94275,2536.3,2536.2,0.02]
[1729778255323,3.94275,2536.3,2536.2,0.01]
[1729778255462,5.09644631,2536.3,2536.2,0.01]
[1729778255660,3.94306,2536.1,2536.0,0.02]
[1729778255902,3.94306,2536.1,2535.8,0.8335]
[1729778255903,3.94337,2535.9,2535.8,0.8535]
[1729778256195,3.6516031,2536.4,2535.8,0.8535]
[1729778256196,7.88656,2536.0,2535.8,0.8535]
[1729778256397,3.94324,2536.0,2535.8,0.8535]
[1729778256758,3.94301,2536.2,2535.8,0.8535]
[1729778257193,4.49301,2536.2,2536.1,0.01]
[1729778257499,4.49301,2536.2,2536.1,0.05020709]
[1729778259284,5.70174731,2536.2,2536.1,0.04020709]
[1729778259600,3.94337,2535.9,2535.8,0.01]
[1729778259915,3.94368,2535.7,2535.6,0.01]
[1729778260814,3.94352,2535.8,2535.3,0.01]
[1729778260815,4.49399,2535.5,2535.3,0.01]
[1729778260983,3.94415,2535.4,2535.3,0.01]
[1729778261712,3.9443,2535.3,2535.2,0.01]
[1729778262193,3.9443,2535.3,2535.2,0.02]
[1729778263801,3.94415,2535.4,2535.2,0.02]
[1729778263997,7.88845,2535.4,2535.2,0.02]
[1729778264212,3.9443,2535.3,2535.2,0.01]
[1729778264551,3.9443,2535.3,2535.2,0.02]
[1729778264831,7.88845,2535.4,2535.2,0.02]
[1729778265018,3.94415,2535.4,2535.2,0.02]
[1729778265419,3.0,2535.5,2535.4,0.01]
[1729778265620,6.94399,2535.5,2535.4,0.01]
[1729778265837,11.6843851,2535.5,2535.4,0.01]
[1729778266143,3.94399,2535.5,2535.4,0.06136726]
[1729778266337,3.9443,2535.3,2535.2,0.02]
[1729778269522,3.94428,2535.4,2535.2,0.02]
[1729778269747,3.9443,2535.3,2535.2,0.02]
[1729778270244,7.5956231,2535.5,2535.2,0.02]
[1729778270740,3.94368,2535.7,2535.6,0.01]
[1729778271041,3.94395,2535.6,2535.4,0.02]
[1729778271400,3.6516031,2535.8,2535.4,0.02]
[1729778271401,11.5388031,2535.8,2535.4,0.02]
[1729778271745,3.94368,2535.7,2535.6,0.02]
[1729778272038,3.94368,2535.7,2535.6,0.06138326]
[1729778272545,6.85896536,2535.7,2535.6,0.06138326]
[1729778273768,6.85896536,2535.7,2535.6,0.04138326]
[1729778273935,7.9392169,2535.7,2535.6,0.05138326]